[Event "Early-Titled-Tuesday-Blitz-April-23-2024"]
[Site "Chess.com"]
[Date "2024.04.23"]
[Round "8"]
[White "Barath1308"]
[Black "BashirovKemal"]
[Result "1-0"]
[WhiteElo "2552"]
[BlackElo "2709"]
[TimeControl "180+1"]
[EndTime "9:31:28 PDT"]
[Termination "Barath1308 won on time"]

1. b3 {[%clk 0:02:59.6]} 1... e6 {[%clk 0:02:58.5]} 2. Bb2 {[%clk 0:02:59.8]}
2... Nf6 {[%clk 0:02:59.1]} 3. Nf3 {[%clk 0:02:59.4]} 3... d5 {[%clk 0:02:59.2]}
4. e3 {[%clk 0:02:57.7]} 4... Be7 {[%clk 0:02:59.6]} 5. c4 {[%clk 0:02:58.1]}
5... O-O {[%clk 0:02:59.6]} 6. d4 {[%clk 0:02:57.9]} 6... b6 {[%clk 0:02:55.3]}
7. Nbd2 {[%clk 0:02:57.6]} 7... Bb7 {[%clk 0:02:55.8]} 8. Bd3 {[%clk 0:02:58.1]}
8... Nbd7 {[%clk 0:02:51.7]} 9. O-O {[%clk 0:02:58.5]} 9... c5 {[%clk
0:02:13.2]} 10. Ne5 {[%clk 0:02:54.1]} 10... Rc8 {[%clk 0:02:06.2]} 11. f4
{[%clk 0:02:52.7]} 11... dxc4 {[%clk 0:02:05.2]} 12. bxc4 {[%clk 0:02:50.8]}
12... cxd4 {[%clk 0:02:05.1]} 13. exd4 {[%clk 0:02:49.9]} 13... Nb8 {[%clk
0:01:44.1]} 14. Qe2 {[%clk 0:02:46.4]} 14... Nc6 {[%clk 0:01:41.6]} 15. Ndf3
{[%clk 0:02:46.2]} 15... Nd7 {[%clk 0:01:17.2]} 16. Rad1 {[%clk 0:02:45]} 16...
Bd6 {[%clk 0:01:08.3]} 17. Bb1 {[%clk 0:02:40.2]} 17... Nf6 {[%clk 0:01:03.5]}
18. a3 {[%clk 0:02:14.2]} 18... Ne7 {[%clk 0:01:01.2]} 19. Ng5 {[%clk
0:02:11.7]} 19... h6 {[%clk 0:00:34.5]} 20. Ngf3 {[%clk 0:01:55.3]} 20... Nf5
{[%clk 0:00:33.8]} 21. d5 {[%clk 0:01:49.7]} 21... Bc5+ {[%clk 0:00:30.5]} 22.
Kh1 {[%clk 0:01:46.2]} 22... Ne3 {[%clk 0:00:29.8]} 23. dxe6 {[%clk 0:01:46.4]}
23... Nxd1 {[%clk 0:00:25.1]} 24. Rxd1 {[%clk 0:01:44.8]} 24... Qe7 {[%clk
0:00:22.9]} 25. exf7+ {[%clk 0:01:31]} 25... Rxf7 {[%clk 0:00:14.2]} 26. Nh4
{[%clk 0:01:16.5]} 26... Rd8 {[%clk 0:00:08]} 27. Rxd8+ {[%clk 0:00:59.5]} 27...
Qxd8 {[%clk 0:00:08.9]} 28. Nxf7 {[%clk 0:00:58.8]} 28... Kxf7 {[%clk
0:00:09.8]} 29. Nf5 {[%clk 0:00:55.3]} 29... Qd7 {[%clk 0:00:06.9]} 30. Bxf6
{[%clk 0:00:38.7]} 1-0

[Event "Early-Titled-Tuesday-Blitz-April-23-2024"]
[Site "Chess.com"]
[Date "2024.04.23"]
[Round "8"]
[White "bubeliang"]
[Black "DumbKing75"]
[Result "1-0"]
[WhiteElo "2788"]
[BlackElo "2641"]
[TimeControl "180+1"]
[EndTime "9:31:30 PDT"]
[Termination "bubeliang won by resignation"]

1. e4 {[%clk 0:03:00.9]} 1... c5 {[%clk 0:03:00]} 2. c3 {[%clk 0:03:00]} 2... d5
{[%clk 0:02:59.9]} 3. exd5 {[%clk 0:02:58.3]} 3... Qxd5 {[%clk 0:03:00.8]} 4. d4
{[%clk 0:02:58.2]} 4... g6 {[%clk 0:03:00.6]} 5. Nf3 {[%clk 0:02:57.8]} 5... Bg7
{[%clk 0:03:00.1]} 6. Nbd2 {[%clk 0:02:57.4]} 6... cxd4 {[%clk 0:02:59.5]} 7.
Bc4 {[%clk 0:02:57.4]} 7... Qd8 {[%clk 0:02:58.9]} 8. Nxd4 {[%clk 0:02:57.1]}
8... e5 {[%clk 0:02:37.4]} 9. N4f3 {[%clk 0:02:54.9]} 9... Nc6 {[%clk 0:02:34]}
10. Qe2 {[%clk 0:02:54.5]} 10... Nge7 {[%clk 0:02:26.2]} 11. h4 {[%clk
0:02:50.6]} 11... Bg4 {[%clk 0:02:16.4]} 12. Bxf7+ {[%clk 0:02:45.4]} 12... Kf8
{[%clk 0:02:04.5]} 13. Bb3 {[%clk 0:02:42.7]} 13... Nd5 {[%clk 0:01:00.7]} 14.
Ne4 {[%clk 0:02:27.6]} 14... Nf4 {[%clk 0:00:59.7]} 15. Bxf4 {[%clk 0:02:26.9]}
15... exf4 {[%clk 0:01:00.6]} 16. Qc4 {[%clk 0:02:26.3]} 16... Qe7 {[%clk
0:00:56.3]} 17. O-O-O {[%clk 0:02:25.1]} 17... Na5 {[%clk 0:00:47.7]} 18. Qc5
{[%clk 0:02:19]} 18... Nxb3+ {[%clk 0:00:44.4]} 19. axb3 {[%clk 0:02:19.9]}
19... Re8 {[%clk 0:00:39.8]} 20. Nd6 {[%clk 0:02:09.6]} 20... Bxf3 {[%clk
0:00:18.4]} 21. gxf3 {[%clk 0:02:07.8]} 21... Be5 {[%clk 0:00:11.7]} 22. Nxb7
{[%clk 0:01:49.8]} 22... Qxc5 {[%clk 0:00:06.8]} 23. Nxc5 {[%clk 0:01:50.7]}
23... Re7 {[%clk 0:00:06.3]} 24. Rd8+ {[%clk 0:01:48]} 24... Kf7 {[%clk
0:00:06.9]} 25. Rxh8 {[%clk 0:01:48.9]} 25... Bxh8 {[%clk 0:00:07]} 26. Ne4
{[%clk 0:01:47.2]} 26... Bf6 {[%clk 0:00:04.1]} 27. h5 {[%clk 0:01:46]} 27... g5
{[%clk 0:00:03.9]} 28. Kc2 {[%clk 0:01:44.9]} 28... h6 {[%clk 0:00:03.7]} 29. b4
{[%clk 0:01:44.9]} 29... Be5 {[%clk 0:00:04.1]} 30. b5 {[%clk 0:01:45.2]} 30...
Ke6 {[%clk 0:00:04.7]} 31. c4 {[%clk 0:01:45.4]} 31... Kf5 {[%clk 0:00:05.4]}
32. Rg1 {[%clk 0:01:43.8]} 32... Rd7 {[%clk 0:00:04.8]} 33. c5 {[%clk
0:01:42.3]} 33... Rd4 {[%clk 0:00:04]} 34. c6 {[%clk 0:01:41.1]} 34... Rb4
{[%clk 0:00:03.6]} 35. Rd1 {[%clk 0:01:13.2]} 35... Rxb2+ {[%clk 0:00:02.7]} 36.
Kd3 {[%clk 0:01:13.9]} 36... Rxb5 {[%clk 0:00:03]} 37. Kc4 {[%clk 0:01:14.6]}
37... Rb2 {[%clk 0:00:02.7]} 38. Rc1 {[%clk 0:01:03.6]} 38... Rb8 {[%clk
0:00:02.3]} 39. Nc5 {[%clk 0:01:01.3]} 39... Rc8 {[%clk 0:00:02.4]} 40. Kd5
{[%clk 0:01:00.9]} 40... Rd8+ {[%clk 0:00:03]} 41. Nd7 {[%clk 0:01:00.9]} 41...
Rc8 {[%clk 0:00:03.9]} 42. Nxe5 {[%clk 0:01:00.3]} 1-0

[Event "Early-Titled-Tuesday-Blitz-April-23-2024"]
[Site "Chess.com"]
[Date "2024.04.23"]
[Round "8"]
[White "Naruna_Chan"]
[Black "Balla_Tamas"]
[Result "0-1"]
[WhiteElo "2331"]
[BlackElo "2534"]
[TimeControl "180+1"]
[EndTime "9:31:30 PDT"]
[Termination "Balla_Tamas won by resignation"]

1. e4 {[%clk 0:03:00.9]} 1... c5 {[%clk 0:02:59.7]} 2. Nf3 {[%clk 0:03:00.5]}
2... Nc6 {[%clk 0:02:59.6]} 3. d4 {[%clk 0:03:00.9]} 3... cxd4 {[%clk
0:02:59.9]} 4. Nxd4 {[%clk 0:03:01.8]} 4... e5 {[%clk 0:03:00.4]} 5. Nb5 {[%clk
0:03:01.5]} 5... d6 {[%clk 0:03:00.5]} 6. N1c3 {[%clk 0:03:00.8]} 6... a6 {[%clk
0:03:00.5]} 7. Na3 {[%clk 0:03:01.4]} 7... b5 {[%clk 0:03:01.2]} 8. Nd5 {[%clk
0:03:01.8]} 8... Nge7 {[%clk 0:03:01.9]} 9. Bg5 {[%clk 0:02:59.2]} 9... h6
{[%clk 0:03:01.4]} 10. Bxe7 {[%clk 0:02:58.6]} 10... Bxe7 {[%clk 0:02:56.7]} 11.
c4 {[%clk 0:02:57.7]} 11... O-O {[%clk 0:02:55.6]} 12. cxb5 {[%clk 0:02:54.8]}
12... Nd4 {[%clk 0:02:53.4]} 13. bxa6 {[%clk 0:02:44.5]} 13... Be6 {[%clk
0:02:43.1]} 14. Bc4 {[%clk 0:02:33.6]} 14... Bxd5 {[%clk 0:02:19.9]} 15. Bxd5
{[%clk 0:02:27.9]} 15... Rxa6 {[%clk 0:02:17.9]} 16. O-O {[%clk 0:02:26.2]}
16... Qb8 {[%clk 0:02:11.1]} 17. Nc4 {[%clk 0:02:18.9]} 17... Kh8 {[%clk
0:01:49.1]} 18. f4 {[%clk 0:01:55.8]} 18... f5 {[%clk 0:01:43.9]} 19. fxe5
{[%clk 0:01:52.1]} 19... dxe5 {[%clk 0:01:41.6]} 20. exf5 {[%clk 0:01:50.1]}
20... Nxf5 {[%clk 0:01:41]} 21. Qg4 {[%clk 0:01:37]} 21... Bc5+ {[%clk
0:01:36.8]} 22. Kh1 {[%clk 0:01:35.8]} 22... Raf6 {[%clk 0:01:37.4]} 23. Rfe1
{[%clk 0:01:22.3]} 23... Bd4 {[%clk 0:01:13.7]} 24. Be4 {[%clk 0:00:56.1]} 24...
Qb4 {[%clk 0:01:08.6]} 25. Rac1 {[%clk 0:00:50.9]} 25... Nd6 {[%clk 0:01:01.5]}
26. Qe2 {[%clk 0:00:38.8]} 26... Nxe4 {[%clk 0:00:44.2]} 27. Qxe4 {[%clk
0:00:35.3]} 27... Qxc4 {[%clk 0:00:42.8]} 28. h3 {[%clk 0:00:20.7]} 28... Qxa2
{[%clk 0:00:40]} 29. Re2 {[%clk 0:00:15.6]} 29... Qb3 {[%clk 0:00:34.4]} 30.
Rce1 {[%clk 0:00:10.1]} 30... Rf1+ {[%clk 0:00:32]} 31. Kh2 {[%clk 0:00:08.8]}
31... Bg1+ {[%clk 0:00:29.7]} 0-1

[Event "Early-Titled-Tuesday-Blitz-April-23-2024"]
[Site "Chess.com"]
[Date "2024.04.23"]
[Round "8"]
[White "TokChess"]
[Black "eagleclaw07"]
[Result "0-1"]
[WhiteElo "2615"]
[BlackElo "2864"]
[TimeControl "180+1"]
[EndTime "9:31:33 PDT"]
[Termination "eagleclaw07 won by resignation"]

1. c4 {[%clk 0:03:00.9]} 1... c6 {[%clk 0:02:56.4]} 2. d4 {[%clk 0:02:58.6]}
2... d5 {[%clk 0:02:57.3]} 3. e3 {[%clk 0:02:59.2]} 3... Nf6 {[%clk 0:02:57.4]}
4. Nc3 {[%clk 0:02:59.8]} 4... e6 {[%clk 0:02:57.7]} 5. Nf3 {[%clk 0:03:00.1]}
5... Nbd7 {[%clk 0:02:57.5]} 6. Qc2 {[%clk 0:03:00.6]} 6... Bd6 {[%clk
0:02:57.6]} 7. Bd2 {[%clk 0:03:01.2]} 7... O-O {[%clk 0:02:57.8]} 8. g4 {[%clk
0:03:01.3]} 8... Nxg4 {[%clk 0:02:57.2]} 9. Rg1 {[%clk 0:03:01.3]} 9... Ngf6
{[%clk 0:02:56.6]} 10. O-O-O {[%clk 0:02:55.5]} 10... dxc4 {[%clk 0:02:49.7]}
11. Bxc4 {[%clk 0:02:56.4]} 11... b5 {[%clk 0:02:50.4]} 12. Bd3 {[%clk
0:02:52.8]} 12... b4 {[%clk 0:02:49.4]} 13. Ne4 {[%clk 0:02:28.2]} 13... Nxe4
{[%clk 0:02:48.4]} 14. Bxe4 {[%clk 0:02:29.1]} 14... Nf6 {[%clk 0:02:45.9]} 15.
Bd3 {[%clk 0:02:25.1]} 15... Bb7 {[%clk 0:02:42.6]} 16. Ng5 {[%clk 0:02:17.3]}
16... h6 {[%clk 0:02:39.7]} 17. Nh7 {[%clk 0:01:53.9]} 17... Nxh7 {[%clk
0:02:36.4]} 18. Bxh7+ {[%clk 0:01:54.8]} 18... Kh8 {[%clk 0:02:37.1]} 19. Be4
{[%clk 0:01:40.1]} 19... Rc8 {[%clk 0:02:35.9]} 20. Kb1 {[%clk 0:01:38.9]} 20...
Ba6 {[%clk 0:02:33.9]} 21. Rc1 {[%clk 0:01:09.7]} 21... c5 {[%clk 0:02:32]} 22.
Qa4 {[%clk 0:01:06.5]} 22... Qb6 {[%clk 0:02:28.7]} 23. dxc5 {[%clk 0:00:34.3]}
23... Bxc5 {[%clk 0:02:26.3]} 24. Rxc5 {[%clk 0:00:27]} 24... Qxc5 {[%clk
0:02:21.1]} 25. Qxa6 {[%clk 0:00:24.1]} 25... Rfd8 {[%clk 0:02:18.5]} 26. Qe2
{[%clk 0:00:13.5]} 26... Qc4 {[%clk 0:02:12.8]} 27. Qg4 {[%clk 0:00:05.7]} 27...
g6 {[%clk 0:01:57.4]} 28. Bc1 {[%clk 0:00:03.2]} 28... Rd5 {[%clk 0:01:40.1]}
29. b3 {[%clk 0:00:03.4]} 29... Qc5 {[%clk 0:01:32.8]} 30. Bb2+ {[%clk
0:00:03.6]} 30... Kg8 {[%clk 0:01:32]} 31. Qh4 {[%clk 0:00:02.8]} 31... Rg5
{[%clk 0:01:30.3]} 32. Rxg5 {[%clk 0:00:01.9]} 32... Qxg5 {[%clk 0:01:29.7]} 33.
Qxg5 {[%clk 0:00:02.3]} 33... hxg5 {[%clk 0:01:30.6]} 34. Bd4 {[%clk 0:00:01.8]}
34... f5 {[%clk 0:01:28.2]} 35. Bd3 {[%clk 0:00:02]} 35... a5 {[%clk 0:01:28.1]}
36. Bc4 {[%clk 0:00:02.7]} 36... Kf7 {[%clk 0:01:28.4]} 37. Bb6 {[%clk
0:00:03.4]} 37... Rh8 {[%clk 0:01:28.3]} 38. Kc2 {[%clk 0:00:03.5]} 38... Rxh2
{[%clk 0:01:28.8]} 39. e4 {[%clk 0:00:04]} 39... f4 {[%clk 0:01:27.6]} 40. e5
{[%clk 0:00:04.3]} 40... g4 {[%clk 0:01:27.8]} 41. Kd3 {[%clk 0:00:04.9]} 41...
g3 {[%clk 0:01:27.2]} 42. fxg3 {[%clk 0:00:05.8]} 42... fxg3 {[%clk 0:01:27.6]}
43. Ke3 {[%clk 0:00:05.8]} 43... Rxa2 {[%clk 0:01:22.4]} 44. Kf3 {[%clk
0:00:06.3]} 44... g2 {[%clk 0:01:21]} 45. Kg3 {[%clk 0:00:04.9]} 45... a4 {[%clk
0:01:18.5]} 46. bxa4 {[%clk 0:00:04.5]} 46... b3 {[%clk 0:01:18.9]} 47. Bxb3
{[%clk 0:00:02.6]} 47... Ra3 {[%clk 0:01:19.1]} 48. a5 {[%clk 0:00:02.3]} 48...
Rxb3+ {[%clk 0:01:19.6]} 49. Kxg2 {[%clk 0:00:02.9]} 49... Ra3 {[%clk
0:01:20.1]} 50. Kf2 {[%clk 0:00:02.8]} 50... g5 {[%clk 0:01:20.8]} 51. Kg2
{[%clk 0:00:03.5]} 51... Kg6 {[%clk 0:01:21.6]} 52. Kf2 {[%clk 0:00:04.4]} 52...
Kf5 {[%clk 0:01:22.3]} 53. Kg2 {[%clk 0:00:04.9]} 53... Kxe5 {[%clk 0:01:22.3]}
54. Kf2 {[%clk 0:00:05.8]} 54... Kf5 {[%clk 0:01:22.1]} 0-1

[Event "Early-Titled-Tuesday-Blitz-April-23-2024"]
[Site "Chess.com"]
[Date "2024.04.23"]
[Round "8"]
[White "WilsonPalencia21"]
[Black "ljuks68"]
[Result "1-0"]
[WhiteElo "2544"]
[BlackElo "2377"]
[TimeControl "180+1"]
[EndTime "9:31:35 PDT"]
[Termination "WilsonPalencia21 won on time"]

1. d4 {[%clk 0:02:55.9]} 1... d5 {[%clk 0:02:58]} 2. Nf3 {[%clk 0:02:56.1]} 2...
Nf6 {[%clk 0:02:57.9]} 3. c4 {[%clk 0:02:56.6]} 3... c6 {[%clk 0:02:57.9]} 4.
Nc3 {[%clk 0:02:57.2]} 4... dxc4 {[%clk 0:02:57.8]} 5. a4 {[%clk 0:02:56.3]}
5... Bf5 {[%clk 0:02:57.3]} 6. Ne5 {[%clk 0:02:56.1]} 6... Na6 {[%clk
0:02:56.9]} 7. e3 {[%clk 0:02:52.5]} 7... Nb4 {[%clk 0:02:56.1]} 8. Bxc4 {[%clk
0:02:52.7]} 8... e6 {[%clk 0:02:56.3]} 9. O-O {[%clk 0:02:52.5]} 9... Bd6 {[%clk
0:02:56.2]} 10. Qe2 {[%clk 0:02:52.1]} 10... h6 {[%clk 0:02:54.7]} 11. e4 {[%clk
0:02:51.7]} 11... Bh7 {[%clk 0:02:54.7]} 12. f4 {[%clk 0:02:50.8]} 12... O-O
{[%clk 0:02:50.6]} 13. Kh1 {[%clk 0:02:42.6]} 13... c5 {[%clk 0:02:47.4]} 14.
dxc5 {[%clk 0:02:42.1]} 14... Bxc5 {[%clk 0:02:38.5]} 15. Nxf7 {[%clk
0:02:35.8]} 15... Rxf7 {[%clk 0:02:28.7]} 16. Bxe6 {[%clk 0:02:35]} 16... Qe7
{[%clk 0:02:25.8]} 17. Qc4 {[%clk 0:02:31.6]} 17... b6 {[%clk 0:02:17.8]} 18. f5
{[%clk 0:02:16.3]} 18... Nd7 {[%clk 0:01:54.1]} 19. Nd5 {[%clk 0:01:48.3]} 19...
Nxd5 {[%clk 0:01:49.9]} 20. Qxd5 {[%clk 0:01:46.5]} 20... Rd8 {[%clk 0:01:42.1]}
21. e5 {[%clk 0:01:45.6]} 21... Kh8 {[%clk 0:00:45]} 22. Bxf7 {[%clk 0:01:39.9]}
22... Nxe5 {[%clk 0:00:44.9]} 23. Qe6 {[%clk 0:00:43.5]} 23... Nxf7 {[%clk
0:00:42.1]} 24. Qxe7 {[%clk 0:00:43]} 24... Bxe7 {[%clk 0:00:41.7]} 25. Be3
{[%clk 0:00:43]} 25... Bf6 {[%clk 0:00:39.4]} 26. Rad1 {[%clk 0:00:37]} 26...
Rxd1 {[%clk 0:00:29.7]} 27. Rxd1 {[%clk 0:00:36.6]} 27... Bxf5 {[%clk
0:00:30.3]} 28. Bd4 {[%clk 0:00:32.7]} 28... Bc2 {[%clk 0:00:17.5]} 29. Rd2
{[%clk 0:00:31.3]} 29... Bxa4 {[%clk 0:00:04.8]} 30. Bxf6 {[%clk 0:00:27.2]}
30... gxf6 {[%clk 0:00:04.7]} 31. Rd4 {[%clk 0:00:25.7]} 1-0

[Event "Early-Titled-Tuesday-Blitz-April-23-2024"]
[Site "Chess.com"]
[Date "2024.04.23"]
[Round "8"]
[White "Acva-Alenok"]
[Black "rdarruda"]
[Result "0-1"]
[WhiteElo "2361"]
[BlackElo "2530"]
[TimeControl "180+1"]
[EndTime "9:31:35 PDT"]
[Termination "rdarruda won by resignation"]

1. d4 {[%clk 0:03:00.6]} 1... Nf6 {[%clk 0:02:55.3]} 2. c4 {[%clk 0:03:00.9]}
2... e5 {[%clk 0:02:55.1]} 3. dxe5 {[%clk 0:03:00.3]} 3... Ne4 {[%clk
0:02:54.8]} 4. Nf3 {[%clk 0:02:55.7]} 4... Nc6 {[%clk 0:02:54.4]} 5. Nbd2 {[%clk
0:02:38.4]} 5... Nc5 {[%clk 0:02:52]} 6. b3 {[%clk 0:02:06.4]} 6... Qe7 {[%clk
0:02:50.9]} 7. Bb2 {[%clk 0:02:05.2]} 7... d6 {[%clk 0:02:51.2]} 8. a3 {[%clk
0:01:42.4]} 8... a5 {[%clk 0:02:40.9]} 9. b4 {[%clk 0:01:31.9]} 9... axb4 {[%clk
0:02:35.9]} 10. axb4 {[%clk 0:01:32.5]} 10... Rxa1 {[%clk 0:02:34.5]} 11. Qxa1
{[%clk 0:01:32.7]} 11... Nxb4 {[%clk 0:02:33.7]} 12. Qa8 {[%clk 0:01:25.3]}
12... Kd8 {[%clk 0:02:33.1]} 13. g3 {[%clk 0:01:11.8]} 13... dxe5 {[%clk
0:02:09.9]} 14. Bh3 {[%clk 0:01:06.9]} 14... Nd7 {[%clk 0:02:00.3]} 15. Nxe5
{[%clk 0:00:53.6]} 15... Nb6 {[%clk 0:01:50.6]} 16. Qb8 {[%clk 0:00:23.2]} 16...
Na6 {[%clk 0:01:48]} 17. Qa7 {[%clk 0:00:18.5]} 17... Bxh3 {[%clk 0:01:46.8]}
18. Qxb7 {[%clk 0:00:18.8]} 18... Bc8 {[%clk 0:01:36.4]} 19. Nc6+ {[%clk
0:00:15.5]} 19... Ke8 {[%clk 0:01:36.1]} 20. Qxc8+ {[%clk 0:00:06.5]} 20... Nxc8
{[%clk 0:01:35.2]} 21. Nxe7 {[%clk 0:00:07.1]} 21... Bxe7 {[%clk 0:01:11.2]} 22.
Bxg7 {[%clk 0:00:06.8]} 22... Rg8 {[%clk 0:01:11.6]} 23. Bc3 {[%clk 0:00:07.3]}
23... Bb4 {[%clk 0:01:10.9]} 24. Bxb4 {[%clk 0:00:07.3]} 24... Nxb4 {[%clk
0:01:11.8]} 25. O-O {[%clk 0:00:06.7]} 25... Ke7 {[%clk 0:01:11.1]} 26. Rb1
{[%clk 0:00:06.6]} 26... Nc6 {[%clk 0:01:10.3]} 27. Rb7 {[%clk 0:00:05.7]} 27...
Kd8 {[%clk 0:01:04.9]} 28. Ne4 {[%clk 0:00:05.8]} 28... Re8 {[%clk 0:01:03.8]}
29. f3 {[%clk 0:00:05.4]} 29... Re5 {[%clk 0:01:02.3]} 30. Kf2 {[%clk
0:00:04.5]} 30... h6 {[%clk 0:01:02]} 31. Rb2 {[%clk 0:00:04.2]} 31... Ra5
{[%clk 0:01:00.6]} 32. Rd2+ {[%clk 0:00:04.6]} 32... Ke7 {[%clk 0:01:00.6]} 33.
f4 {[%clk 0:00:04.7]} 33... Nd6 {[%clk 0:01:00.3]} 34. Nxd6 {[%clk 0:00:03.8]}
34... cxd6 {[%clk 0:00:59.7]} 35. Rb2 {[%clk 0:00:03.5]} 35... Rc5 {[%clk
0:00:58.1]} 36. Rc2 {[%clk 0:00:02.9]} 36... Na5 {[%clk 0:00:57.5]} 37. Rb2
{[%clk 0:00:02.1]} 37... Rxc4 {[%clk 0:00:55.5]} 38. Rb7+ {[%clk 0:00:02.6]}
38... Nxb7 {[%clk 0:00:54.4]} 0-1

[Event "Early-Titled-Tuesday-Blitz-April-23-2024"]
[Site "Chess.com"]
[Date "2024.04.23"]
[Round "8"]
[White "masnyszachistaaa"]
[Black "joshdaruca"]
[Result "0-1"]
[WhiteElo "2578"]
[BlackElo "2752"]
[TimeControl "180+1"]
[EndTime "9:31:38 PDT"]
[Termination "joshdaruca won by resignation"]

1. c4 {[%clk 0:02:59.2]} 1... c5 {[%clk 0:01:50.6]} 2. Nc3 {[%clk 0:02:52.5]}
2... Nc6 {[%clk 0:01:51.5]} 3. g3 {[%clk 0:02:48.2]} 3... g6 {[%clk 0:01:51.9]}
4. Bg2 {[%clk 0:02:48.7]} 4... Bg7 {[%clk 0:01:52.8]} 5. d3 {[%clk 0:02:49.2]}
5... e6 {[%clk 0:01:53.3]} 6. e4 {[%clk 0:02:47.9]} 6... Nge7 {[%clk 0:01:53.6]}
7. Nge2 {[%clk 0:02:47]} 7... d6 {[%clk 0:01:53.4]} 8. Be3 {[%clk 0:02:45.6]}
8... Nd4 {[%clk 0:01:52.4]} 9. Bxd4 {[%clk 0:02:29]} 9... cxd4 {[%clk
0:01:53.3]} 10. Nb5 {[%clk 0:02:24.6]} 10... Qb6 {[%clk 0:01:45.6]} 11. Rb1
{[%clk 0:02:18]} 11... Bd7 {[%clk 0:01:43.2]} 12. Na3 {[%clk 0:02:14.4]} 12...
O-O {[%clk 0:01:41]} 13. b4 {[%clk 0:02:10.8]} 13... a5 {[%clk 0:01:40.4]} 14.
b5 {[%clk 0:02:08.4]} 14... e5 {[%clk 0:01:37.8]} 15. O-O {[%clk 0:02:07.8]}
15... Nc8 {[%clk 0:01:32.6]} 16. f4 {[%clk 0:02:06]} 16... f5 {[%clk 0:01:29.8]}
17. Qb3 {[%clk 0:01:22.3]} 17... Be6 {[%clk 0:01:22.9]} 18. exf5 {[%clk
0:01:16.5]} 18... gxf5 {[%clk 0:01:21]} 19. Kh1 {[%clk 0:01:06.9]} 19... Rf7
{[%clk 0:01:20.4]} 20. Rbe1 {[%clk 0:01:03.2]} 20... Qc5 {[%clk 0:01:20.1]} 21.
Nc2 {[%clk 0:01:00.4]} 21... Nb6 {[%clk 0:01:09.9]} 22. fxe5 {[%clk 0:00:15.5]}
22... dxe5 {[%clk 0:01:08.9]} 23. Nexd4 {[%clk 0:00:12]} 23... Bxc4 {[%clk
0:01:09.2]} 24. dxc4 {[%clk 0:00:12.6]} 24... exd4 {[%clk 0:01:09.5]} 25. Bd5
{[%clk 0:00:10.5]} 25... Nxd5 {[%clk 0:01:08.5]} 26. cxd5 {[%clk 0:00:11.4]}
26... a4 {[%clk 0:01:02.9]} 27. Qd3 {[%clk 0:00:06.8]} 27... Qxd5+ {[%clk
0:01:02.7]} 28. Kg1 {[%clk 0:00:07.4]} 28... Rd8 {[%clk 0:01:00.4]} 29. Rf4
{[%clk 0:00:05.8]} 29... Qxa2 {[%clk 0:00:59.1]} 30. Rxf5 {[%clk 0:00:04.6]}
30... Rxf5 {[%clk 0:00:58]} 31. Qxf5 {[%clk 0:00:05.5]} 31... d3 {[%clk
0:00:57.7]} 32. Ne3 {[%clk 0:00:05]} 32... d2 {[%clk 0:00:56.7]} 33. Rd1 {[%clk
0:00:05]} 33... Qb3 {[%clk 0:00:53.9]} 34. Qg5 {[%clk 0:00:03.9]} 34... Rd7
{[%clk 0:00:42.4]} 35. Kf2 {[%clk 0:00:03.5]} 35... a3 {[%clk 0:00:37.1]} 36.
Qf5 {[%clk 0:00:02.2]} 36... Rf7 {[%clk 0:00:36.5]} 0-1

[Event "Early-Titled-Tuesday-Blitz-April-23-2024"]
[Site "Chess.com"]
[Date "2024.04.23"]
[Round "8"]
[White "chess123456s"]
[Black "KetiTsatsalashvili"]
[Result "1-0"]
[WhiteElo "2599"]
[BlackElo "2425"]
[TimeControl "180+1"]
[EndTime "9:31:44 PDT"]
[Termination "chess123456s won on time"]

1. d4 {[%clk 0:02:58.1]} 1... Nf6 {[%clk 0:02:59.8]} 2. Nc3 {[%clk 0:02:58.2]}
2... d5 {[%clk 0:02:59.4]} 3. Bf4 {[%clk 0:02:58.8]} 3... c5 {[%clk 0:02:58.9]}
4. e4 {[%clk 0:02:59.1]} 4... Nxe4 {[%clk 0:02:55.1]} 5. Nxe4 {[%clk 0:02:58.8]}
5... dxe4 {[%clk 0:02:55.2]} 6. dxc5 {[%clk 0:02:59.4]} 6... Qa5+ {[%clk
0:02:45.3]} 7. c3 {[%clk 0:02:59.6]} 7... Qxc5 {[%clk 0:02:44.5]} 8. Qa4+ {[%clk
0:02:59.5]} 8... Nc6 {[%clk 0:02:34.1]} 9. Qxe4 {[%clk 0:02:59.5]} 9... Bf5
{[%clk 0:02:28.3]} 10. Qa4 {[%clk 0:02:58.3]} 10... e6 {[%clk 0:02:04.8]} 11.
Nf3 {[%clk 0:02:45.6]} 11... Be7 {[%clk 0:01:41.2]} 12. Be3 {[%clk 0:02:45.1]}
12... Qa5 {[%clk 0:01:25.4]} 13. Qxa5 {[%clk 0:02:44.1]} 13... Nxa5 {[%clk
0:01:26.3]} 14. Bb5+ {[%clk 0:02:44.5]} 14... Kf8 {[%clk 0:01:19.4]} 15. O-O-O
{[%clk 0:02:40.3]} 15... a6 {[%clk 0:01:06]} 16. Be2 {[%clk 0:02:38.2]} 16...
Nc6 {[%clk 0:00:57.1]} 17. Nd4 {[%clk 0:02:35.8]} 17... Nxd4 {[%clk 0:00:56.4]}
18. Bxd4 {[%clk 0:02:36.7]} 18... Be4 {[%clk 0:00:55.5]} 19. f3 {[%clk
0:02:35.3]} 19... Bd5 {[%clk 0:00:55]} 20. c4 {[%clk 0:02:33.9]} 20... Rc8
{[%clk 0:00:52.2]} 21. Kb1 {[%clk 0:02:32.6]} 21... Bc6 {[%clk 0:00:46.3]} 22.
Bc3 {[%clk 0:02:30.1]} 22... f6 {[%clk 0:00:44.8]} 23. Rd2 {[%clk 0:02:21.6]}
23... Kf7 {[%clk 0:00:45.1]} 24. Rhd1 {[%clk 0:02:21.9]} 24... Rhd8 {[%clk
0:00:45.6]} 25. Kc2 {[%clk 0:02:22]} 25... Rxd2+ {[%clk 0:00:45.3]} 26. Rxd2
{[%clk 0:02:22.9]} 26... Rd8 {[%clk 0:00:40.8]} 27. Rxd8 {[%clk 0:02:22.3]}
27... Bxd8 {[%clk 0:00:41.7]} 28. b4 {[%clk 0:02:22.4]} 28... Bc7 {[%clk
0:00:41.6]} 29. h3 {[%clk 0:02:22]} 29... h5 {[%clk 0:00:40.2]} 30. b5 {[%clk
0:02:21.4]} 30... axb5 {[%clk 0:00:40]} 31. cxb5 {[%clk 0:02:22.3]} 31... Bd5
{[%clk 0:00:40.7]} 32. a4 {[%clk 0:02:22.4]} 32... e5 {[%clk 0:00:39.6]} 33. a5
{[%clk 0:02:20.3]} 33... Ke6 {[%clk 0:00:39.8]} 34. a6 {[%clk 0:02:15.9]} 34...
bxa6 {[%clk 0:00:40.7]} 35. bxa6 {[%clk 0:02:16]} 35... Bb6 {[%clk 0:00:41.2]}
36. Bb5 {[%clk 0:02:05.4]} 36... f5 {[%clk 0:00:39.4]} 37. Kd2 {[%clk
0:01:49.6]} 37... g5 {[%clk 0:00:39.4]} 38. Ke2 {[%clk 0:01:47.3]} 38... g4
{[%clk 0:00:39.3]} 39. hxg4 {[%clk 0:01:46]} 39... hxg4 {[%clk 0:00:39.4]} 40.
fxg4 {[%clk 0:01:40.4]} 40... fxg4 {[%clk 0:00:39.1]} 41. g3 {[%clk 0:01:38.8]}
41... Bf3+ {[%clk 0:00:38.1]} 42. Ke1 {[%clk 0:01:36.6]} 42... Kd5 {[%clk
0:00:33]} 43. Bd7 {[%clk 0:01:21.9]} 43... Kd6 {[%clk 0:00:30.5]} 44. Bc8 {[%clk
0:01:20.7]} 44... Kc7 {[%clk 0:00:28.4]} 45. Bf5 {[%clk 0:01:16]} 45... Bd4
{[%clk 0:00:25.1]} 46. Bxd4 {[%clk 0:01:08.5]} 46... exd4 {[%clk 0:00:24.7]} 47.
Kd2 {[%clk 0:01:07.3]} 47... Kb6 {[%clk 0:00:11.5]} 48. Bc8 {[%clk 0:01:07.1]}
48... Kc7 {[%clk 0:00:02.3]} 49. Be6 {[%clk 0:01:05.9]} 49... Kb6 {[%clk
0:00:01.9]} 50. Bc4 {[%clk 0:01:06.1]} 1-0